bitfinex/quotes_BTCUSD_20251114
["timestamp","ask_amount","ask_price","bid_price","bid_amount"]
[1763094683882,0.20227548,98876.0,98869.0,0.04666]
[1763094684080,0.01891844,98875.0,98872.0,0.20227975]
[1763094684318,0.01891844,98874.0,98872.0,0.20227975]
[1763094684523,0.01011224,98890.0,98877.0,0.20226992]
[1763094684743,0.323,98885.0,98881.0,0.11055]
[1763094684886,0.20225723,98884.0,98881.0,0.11055]
[1763094685095,0.01891956,98883.0,98881.0,0.11055]
[1763094685300,0.01891956,98882.0,98881.0,0.11055]
[1763094685777,0.01891956,98882.0,98881.0,0.04666]
[1763094686862,0.08183725,98882.0,98881.0,0.04666]
[1763094687438,0.01891956,98882.0,98881.0,0.04666]
[1763094688278,0.20225941,98883.0,98881.0,0.04666]
[1763094689241,0.20225393,98886.0,98869.0,0.14321]
[1763094689242,0.20228575,98871.0,98869.0,0.14321]
[1763094689451,0.20226216,98882.0,98873.0,0.20227784]
[1763094689658,0.20226216,98882.0,98878.0,0.06389]
[1763094689862,0.20225923,98885.0,98878.0,0.06389]
[1763094690089,0.20226128,98882.0,98881.0,0.04666]
[1763094690681,0.05255185,98882.0,98869.0,0.04666]
[1763094690920,0.20228537,98871.0,98869.0,0.04666]
[1763094691047,0.0121,98882.0,98869.0,0.04666]
[1763094691244,0.20227679,98875.0,98869.0,0.04766]
[1763094691646,0.20227997,98873.0,98869.0,0.1407]
[1763094691850,0.20227679,98875.0,98869.0,0.1407]
[1763094692052,0.1006426,98874.0,98860.0,0.0004]
[1763094692266,0.20230424,98861.0,98860.0,0.0004]
[1763094693676,0.202762,98861.0,98860.0,0.0014]
[1763094694062,0.202762,98861.0,98860.0,0.00217976]
[1763094694316,0.28629484,98861.0,98860.0,0.00217976]
[1763094694943,0.202762,98861.0,98860.0,0.00117976]
[1763094696268,0.00045776,98861.0,98860.0,0.00117976]
[1763094697375,0.03823776,98861.0,98860.0,0.00217976]
[1763094697584,0.03823776,98861.0,98860.0,0.00317976]
[1763094697804,0.10275097,98861.0,98860.0,0.00317976]
[1763094697982,0.06497097,98861.0,98860.0,0.00217976]
[1763094698962,0.06497097,98861.0,98860.0,0.00117976]
[1763094699195,0.00045776,98861.0,98860.0,0.00117976]
[1763094702193,0.01255776,98861.0,98860.0,0.00117976]
[1763094703609,0.33555776,98861.0,98860.0,0.00117976]
[1763094704258,0.34603675,98861.0,98860.0,0.00117976]
[1763094704569,0.33555776,98861.0,98860.0,0.00117976]
[1763094704739,0.43284246,98861.0,98860.0,0.00117976]
[1763094704943,0.44340022,98861.0,98860.0,0.00117976]
[1763094706172,0.43284246,98861.0,98860.0,0.00117976]
[1763094706344,2.48683035,98861.0,98860.0,0.00117976]
[1763094706542,2.4762612,98861.0,98860.0,0.00117976]
[1763094706948,2.33555776,98861.0,98860.0,0.00117976]
[1763094707162,0.33555776,98861.0,98860.0,0.00117976]
[1763094708191,0.32345776,98861.0,98860.0,0.00117976]
[1763094708438,0.33555776,98861.0,98860.0,0.00117976]
[1763094709007,0.32345776,98861.0,98860.0,0.00117976]
[1763094709329,0.00045776,98861.0,98860.0,0.00117976]
[1763094710703,0.00045776,98861.0,98860.0,0.02117976]
[1763094711140,0.00045776,98861.0,98860.0,0.00117976]
[1763094711563,0.202762,98861.0,98860.0,0.00117976]
[1763094712016,0.240542,98861.0,98860.0,0.00117976]
[1763094712751,0.240542,98861.0,98860.0,0.00217976]
[1763094712942,0.28849638,98861.0,98860.0,0.00217976]
[1763094713455,0.28849638,98861.0,98860.0,0.00117976]
[1763094713456,0.61149638,98861.0,98860.0,0.00117976]
[1763094713993,0.65491512,98861.0,98860.0,0.00117976]
[1763094714247,0.6373581,98861.0,98860.0,0.00117976]
[1763094714655,0.214862,98861.0,98860.0,0.00117976]
[1763094715139,0.58128074,98861.0,98860.0,0.00117976]
[1763094715753,2.58128074,98861.0,98860.0,0.00117976]
[1763094716924,2.60302589,98861.0,98860.0,1e-08]
[1763094717125,2.70150925,98861.0,98860.0,1e-08]
[1763094717463,2.73081935,98861.0,98860.0,1e-08]
[1763094717831,2.72981935,98861.0,98860.0,1e-08]
[1763094718035,0.56875777,98844.0,98810.0,0.01012043]
[1763094718242,2.66773113,98844.0,98802.0,0.09404]
[1763094718417,2.69602121,98844.0,98843.0,2.90838564]
[1763094718621,2.71774774,98844.0,98843.0,2.26558636]
[1763094718830,2.71774774,98844.0,98843.0,0.08927836]
[1763094718831,2.76432764,98844.0,98843.0,0.08927836]
[1763094719034,2.56884584,98801.0,98800.0,0.010151]
[1763094719244,2.56886633,98791.0,98790.0,0.0004]
[1763094719455,0.20250908,98761.0,98760.0,0.0004]
[1763094719658,2.56892782,98761.0,98760.0,0.0004]
[1763094719883,2.59807132,98761.0,98760.0,0.0004]
[1763094720145,2.70417964,98761.0,98760.0,0.0004]
[1763094720353,2.70417964,98761.0,98705.0,0.20262243]
[1763094720354,2.0,98715.0,98714.0,0.02946707]
[1763094720588,2.52563219,98701.0,98700.0,0.01087]
[1763094720792,2.38520437,98701.0,98700.0,0.01087]
[1763094720997,2.36641874,98701.0,98700.0,0.01087]
[1763094721210,2.323,98701.0,98700.0,0.01087]
[1763094721358,2.36641874,98701.0,98700.0,0.01087]
[1763094721559,2.36641874,98701.0,98700.0,0.00587]
[1763094721560,2.36687509,98701.0,98700.0,0.00587]
[1763094721732,2.39491277,98701.0,98700.0,0.00587]
[1763094722182,2.39491277,98701.0,98700.0,1e-08]
[1763094722395,2.39491277,98701.0,98666.0,0.06]
[1763094722396,2.56908994,98682.0,98666.0,0.06]
[1763094722591,0.0101389,98630.0,98614.0,0.00014587]
[1763094722797,0.323,98628.0,98613.0,0.03046863]
[1763094722994,0.323,98622.0,98600.0,0.02]
[1763094723152,0.04341874,98629.0,98600.0,0.02]
[1763094723347,0.36641874,98625.0,98600.0,0.02]
[1763094723610,0.04341874,98619.0,98600.0,0.02]
[1763094723846,0.04341874,98619.0,98601.0,0.14052203]
[1763094723847,0.00045579,98619.0,98601.0,0.14052203]
[1763094724051,0.00045579,98619.0,98618.0,0.00630642]
[1763094724523,0.36641874,98612.0,98601.0,0.011831]
[1763094724736,0.04387453,98619.0,98600.0,0.02]
[1763094724737,0.20282856,98606.0,98600.0,0.02]
[1763094724951,0.20283701,98602.0,98600.0,0.02]
[1763094725151,2.54341874,98601.0,98600.0,0.02]
[1763094725358,2.36641874,98601.0,98600.0,0.02]
[1763094725563,2.36641874,98601.0,98600.0,1e-08]
[1763094726419,2.0,98601.0,98600.0,1e-08]
[1763094726685,2.0,98601.0,98576.0,0.09822]
[1763094726686,0.001,98601.0,98532.0,0.1492426]
[1763094726939,2.0,98600.0,98572.0,0.01814935]
[1763094727170,0.20289137,98575.0,98572.0,0.01814935]
[1763094727379,2.0,98596.0,98572.0,0.01814935]
[1763094727800,0.002,98601.0,98595.0,0.04506]
[1763094728250,0.002,98601.0,98596.0,0.014147]
[1763094728458,0.20284829,98596.0,98576.0,0.04506]
[1763094728661,0.20284387,98598.0,98572.0,0.01814935]
[1763094728867,2.0,98600.0,98572.0,0.01814935]
[1763094729064,0.00045579,98601.0,98580.0,0.55636957]
[1763094729266,0.00045579,98601.0,98576.0,0.20288747]
[1763094729419,0.00045579,98601.0,98573.0,0.22837825]
[1763094729640,2.0,98600.0,98573.0,0.12189479]
[1763094729849,0.2028502,98595.0,98574.0,0.1970526]
[1763094730049,2.0,98598.0,98575.0,0.09848336]
[1763094730251,2.01014198,98600.0,98574.0,0.09641]
[1763094730453,2.56926261,98598.0,98597.0,0.00054804]
[1763094731681,2.323,98598.0,98597.0,0.00054804]
[1763094731884,2.0,98598.0,98597.0,0.00054804]
[1763094732260,2.323,98598.0,98597.0,0.00054804]
[1763094732615,2.36641874,98598.0,98597.0,0.00054804]
[1763094733467,2.36741874,98598.0,98597.0,0.00054804]
[1763094733869,2.36641874,98598.0,98597.0,0.00054804]
[1763094734481,0.20289737,98572.0,98550.0,0.01014713]
[1763094734666,0.323,98582.0,98556.0,0.20293018]
[1763094734882,0.323,98582.0,98562.0,0.09641]
[1763094735099,0.323,98582.0,98560.0,0.03219506]
[1763094735434,0.001,98598.0,98561.0,0.12415457]
[1763094735800,0.20282029,98610.0,98588.0,0.20286437]
[1763094736003,0.04559,98624.0,98600.0,0.06278]
[1763094736004,0.2028036,98618.0,98600.0,0.06278]
[1763094736218,0.01013993,98620.0,98590.0,0.55636957]
[1763094736572,0.20282375,98608.0,98592.0,0.03047041]
[1763094736737,0.20282979,98605.0,98582.0,0.20287679]
[1763094736931,0.20282979,98605.0,98581.0,0.04506]
[1763094736932,0.202823,98609.0,98590.0,0.55636957]
[1763094737132,0.20280351,98618.0,98600.0,0.04506]
[1763094737345,0.01013993,98620.0,98600.0,0.10784]
[1763094737346,0.2028003,98620.0,98600.0,0.10784]
[1763094737551,0.20281071,98615.0,98600.0,0.10784]
[1763094737751,0.04559,98624.0,98600.0,0.10784]
[1763094737993,0.20281316,98613.0,98600.0,0.04506]
[1763094738191,0.20280269,98619.0,98600.0,0.04506]
[1763094738404,0.20280713,98616.0,98600.0,0.04506]
[1763094738606,0.20286033,98590.0,98589.0,0.03047196]
[1763094738853,0.20286033,98590.0,98540.0,0.02014815]
[1763094738854,0.20289695,98573.0,98550.0,0.09641]
[1763094738994,0.01014404,98580.0,98565.0,0.03048184]
[1763094739204,0.01014404,98580.0,98550.0,0.65277957]
[1763094739475,0.323,98576.0,98551.0,0.03048453]
[1763094739678,0.20287265,98585.0,98551.0,0.22753713]
[1763094739885,2.0,98589.0,98551.0,0.22753713]
[1763094740128,0.20288087,98581.0,98560.0,0.01]
[1763094740320,0.04341874,98598.0,98560.0,0.55636957]
[1763094740522,2.0,98597.0,98580.0,0.00044377]
[1763094740728,0.323,98597.0,98570.0,0.56651464]
[1763094740928,0.00045579,98601.0,98596.0,0.04506]
[1763094741066,0.20283975,98600.0,98596.0,0.04506]
[1763094741243,0.00045579,98601.0,98596.0,0.04506]
[1763094742279,0.00045579,98601.0,98589.0,0.04506]
[1763094742486,0.00045579,98601.0,98582.0,0.1]
[1763094742487,0.02554,98585.0,98582.0,0.1]
[1763094742701,0.52636473,98583.0,98582.0,0.1]
[1763094742906,0.323,98583.0,98582.0,0.1]
[1763094743524,2.32349,98583.0,98582.0,0.1]
[1763094743924,2.323,98583.0,98582.0,0.1]
[1763094744146,0.20287166,98585.0,98582.0,0.1]
[1763094745800,0.0495,98583.0,98582.0,0.1]
[1763094746012,2.82349,98583.0,98582.0,0.1]
[1763094746229,2.36690874,98583.0,98582.0,0.10039155]
[1763094747252,2.38823403,98583.0,98582.0,0.10039155]
[1763094747938,2.323,98583.0,98582.0,0.10039155]
[1763094748191,2.39481489,98583.0,98582.0,0.10039155]
[1763094748360,2.41624813,98583.0,98582.0,0.10039155]
[1763094748577,2.41724813,98583.0,98582.0,0.0875353]
[1763094749187,2.37333939,98583.0,98582.0,0.0875353]
[1763094749339,2.37382939,98583.0,98582.0,0.0875353]
[1763094749542,2.41724813,98583.0,98582.0,0.0875353]
[1763094749796,2.41724813,98583.0,98582.0,0.032672]
[1763094751153,2.37382939,98583.0,98582.0,0.032672]
[1763094751609,2.41724813,98583.0,98582.0,0.032672]
[1763094752173,0.00085,98535.0,98510.0,0.03177005]
[1763094752388,0.00167,98529.0,98510.0,0.0216188]
[1763094752587,0.0848563,98529.0,98518.0,0.04534]
[1763094753202,0.28784222,98529.0,98518.0,0.04534]
[1763094753405,0.28784222,98529.0,98510.0,0.0216188]
[1763094753406,2.3322062,98529.0,98510.0,0.0216188]
[1763094753614,2.38623365,98529.0,98510.0,0.05212196]
[1763094754066,2.38623365,98529.0,98518.0,0.09236]
[1763094754067,0.04987154,98529.0,98518.0,0.09236]
[1763094754282,0.04987154,98529.0,98517.0,0.04534]
[1763094754283,0.04987154,98529.0,98522.0,0.09236]
[1763094754508,0.04987154,98529.0,98528.0,0.00689655]
[1763094754805,0.04049258,98529.0,98528.0,0.00689655]
[1763094755034,0.01905934,98529.0,98528.0,0.00489655]
[1763094756170,0.01905934,98529.0,98528.0,0.00689655]
[1763094756848,2.57650646,98529.0,98528.0,0.00689655]
[1763094757075,2.05052054,98529.0,98528.0,0.00689655]
[1763094757292,2.6199252,98529.0,98528.0,0.00489655]
[1763094757518,2.6199252,98529.0,98528.0,0.00689655]
[1763094758177,2.6199252,98529.0,98528.0,0.00489655]
[1763094758394,2.6199252,98529.0,98528.0,1e-08]
[1763094758658,2.6199252,98529.0,98528.0,0.0014105]
[1763094759333,2.6209252,98529.0,98528.0,0.0014105]
[1763094759534,2.6209252,98529.0,98528.0,1e-08]
[1763094760371,2.6209252,98529.0,98510.0,0.0216188]
[1763094760372,2.59522175,98511.0,98510.0,1e-08]
[1763094760642,2.60137831,98511.0,98510.0,1e-08]
[1763094760950,2.64479705,98511.0,98510.0,1e-08]
[1763094761504,2.64479705,98511.0,98500.0,11.25]
[1763094761505,0.56946236,98501.0,98500.0,10.78612426]
[1763094761778,2.61903766,98501.0,98500.0,10.49978416]
[1763094762001,2.67276275,98501.0,98500.0,10.07570572]
[1763094762215,2.65035922,98501.0,98500.0,10.07570572]
[1763094762442,2.61903766,98501.0,98500.0,9.92518953]
[1763094762908,2.0495753,98501.0,98500.0,9.92518953]
[1763094763120,2.25261892,98501.0,98500.0,9.92518953]
[1763094763720,2.61903766,98501.0,98500.0,9.92518953]
[1763094764121,0.0495753,98501.0,98500.0,9.92518953]
[1763094764329,0.0196041,98501.0,98500.0,9.92518953]
[1763094764743,0.0186041,98501.0,98500.0,9.92518953]
[1763094765148,0.0196041,98501.0,98500.0,9.92518953]
[1763094765344,10.07481047,98500.0,98495.0,0.20305495]
[1763094765556,10.07481047,98500.0,98487.0,0.09236]
[1763094765557,0.0186041,98499.0,98487.0,0.09236]
[1763094765683,0.0186041,98498.0,98493.0,0.2030588]
[1763094765886,0.0186041,98497.0,98460.0,0.09236]
[1763094766098,0.01015331,98490.0,98460.0,0.53761126]
[1763094766340,0.0186041,98489.0,98464.0,0.09236]
[1763094766514,0.20307675,98485.0,98464.0,0.08736]
[1763094766825,0.0186041,98484.0,98464.0,0.08736]
[1763094767045,0.20309475,98477.0,98464.0,0.08736]
[1763094767246,0.20310774,98470.0,98460.0,0.44525126]
[1763094767451,0.00045496,98485.0,98460.0,0.44525126]
[1763094767601,0.00045496,98485.0,98440.0,0.02]
[1763094767602,0.04044,98464.0,98440.0,0.02]
[1763094767801,0.58563764,98464.0,98430.0,0.0101595]
[1763094768009,2.63834919,98464.0,98424.0,0.04534]
[1763094768452,2.63834919,98464.0,98463.0,0.00109]
[1763094769283,2.63834919,98464.0,98426.0,0.04534]
[1763094769284,0.20318595,98432.0,98426.0,0.04534]
[1763094769600,0.20318595,98432.0,98420.0,0.0004]
[1763094769806,0.20319008,98430.0,98420.0,0.0004]
[1763094770013,0.01855922,98430.0,98420.0,0.0004]
[1763094770268,0.20318701,98433.0,98420.0,0.0004]
[1763094770501,0.0004544,98433.0,98420.0,0.0004]
[1763094770706,0.0004544,98433.0,98429.0,0.22050649]
[1763094771772,0.20318595,98432.0,98429.0,0.21850649]
[1763094771895,0.0004544,98433.0,98429.0,0.21850649]
[1763094772094,0.0004544,98433.0,98431.0,0.00253685]
[1763094772301,0.20319008,98430.0,98429.0,0.21850649]
[1763094772726,0.20363978,98433.0,98429.0,0.21850649]
[1763094772934,0.22172686,98432.0,98429.0,0.21850649]
[1763094773103,0.20319008,98430.0,98429.0,0.21850649]
[1763094773535,0.54521447,98430.0,98429.0,0.21850649]
[1763094773740,2.5696274,98421.0,98420.0,0.0004]
[1763094773915,2.58865179,98421.0,98420.0,0.0004]
[1763094774710,2.58965179,98421.0,98420.0,0.0004]
[1763094774916,2.54623305,98421.0,98420.0,0.0004]
[1763094775161,2.58965179,98421.0,98420.0,0.0004]
[1763094776041,2.59790846,98421.0,98420.0,1e-08]
[1763094776276,0.20333882,98358.0,98317.0,0.09236]
[1763094776537,2.22183234,98358.0,98336.0,0.04534]
[1763094776766,0.04044,98359.0,98336.0,0.04534]
[1763094776977,2.20333882,98358.0,98336.0,0.04534]
[1763094777202,2.20333882,98358.0,98314.0,0.0216617]
[1763094777203,2.544833,98358.0,98314.0,0.0216617]
[1763094777440,2.54526059,98358.0,98323.0,0.20341108]
[1763094777852,2.54526059,98358.0,98323.0,0.20341101]
[1763094778086,2.54526059,98358.0,98357.0,0.24148853]
[1763094778747,2.57021141,98358.0,98357.0,0.24148853]
[1763094778955,2.58866083,98358.0,98357.0,0.24148853]
[1763094779471,0.20339672,98330.0,98314.0,0.0216617]
[1763094780121,2.52639672,98330.0,98314.0,0.0216617]
[1763094780535,2.323,98330.0,98314.0,0.0216617]
[1763094781148,2.36690874,98330.0,98314.0,0.0216617]
[1763094781617,2.0,98333.0,98314.0,0.0216617]
[1763094781854,0.20339258,98332.0,98314.0,0.0216617]
[1763094782072,2.20339672,98330.0,98314.0,0.0216617]
[1763094782806,2.52688672,98330.0,98314.0,0.0216617]
[1763094783343,0.20342775,98315.0,98314.0,0.02164825]
[1763094783865,0.20341293,98323.0,98314.0,0.02164825]
[1763094784117,0.45541902,98350.0,98314.0,0.02164825]
[1763094784118,0.323,98336.0,98314.0,0.02164825]
[1763094784347,2.0,98335.0,98314.0,0.02164825]
[1763094784548,2.00045385,98335.0,98314.0,0.02164825]
[1763094784768,0.20340144,98329.0,98314.0,0.02164825]
[1763094784988,0.00045385,98335.0,98334.0,0.06488]
[1763094785203,0.00045385,98335.0,98334.0,0.11348]
[1763094785709,0.00045385,98335.0,98334.0,0.0486]
[1763094787050,0.00045385,98335.0,98334.0,0.0506]
[1763094787674,0.00045385,98335.0,98334.0,0.0486]
[1763094788099,1e-08,98335.0,98334.0,0.0486]
[1763094789027,0.20338639,98335.0,98334.0,0.0506]
[1763094789511,0.20338639,98335.0,98334.0,0.0486]
[1763094789719,2.20338639,98335.0,98334.0,0.0496]
[1763094790157,2.20338639,98335.0,98334.0,0.001]
[1763094790389,2.20338639,98335.0,98325.0,0.0466]
[1763094790390,0.20340499,98326.0,98325.0,0.0466]
[1763094790641,0.20340499,98326.0,98314.0,0.11851825]
[1763094790642,0.20342775,98315.0,98314.0,0.11851825]
[1763094791300,0.20340864,98325.0,98314.0,0.11851825]
[1763094791515,0.20342758,98316.0,98314.0,0.11851825]
[1763094791732,0.20340706,98325.0,98324.0,0.00086474]
[1763094791972,0.0101688,98340.0,98324.0,0.00086474]
[1763094792211,0.20339476,98331.0,98325.0,0.09687]
[1763094792421,0.20336589,98345.0,98334.0,0.10808]
[1763094792631,0.20338249,98337.0,98334.0,0.10808]
[1763094793091,0.45541902,98350.0,98314.0,0.02164825]
[1763094793092,2.00000001,98335.0,98314.0,0.02164825]
[1763094793281,2.00000001,98335.0,98334.0,0.06148]
[1763094793282,0.20338846,98335.0,98334.0,0.06148]
[1763094793914,1e-08,98335.0,98334.0,0.06148]
[1763094794132,1e-08,98335.0,98333.0,0.0466]
[1763094794336,1e-08,98335.0,98334.0,0.40090105]
[1763094794746,1e-08,98335.0,98334.0,0.30403105]
[1763094795811,1e-08,98335.0,98334.0,0.1006426]
[1763094795987,1e-08,98335.0,98334.0,0.1026426]
[1763094796329,1e-08,98335.0,98334.0,0.10091121]
[1763094796535,1e-08,98335.0,98334.0,0.09891121]
[1763094796731,1e-08,98335.0,98334.0,0.10091121]
[1763094797379,1e-08,98335.0,98334.0,0.42451385]
[1763094797787,1e-08,98335.0,98334.0,0.46793259]
[1763094798035,1e-08,98335.0,98334.0,0.46593259]
[1763094798277,1e-08,98335.0,98334.0,0.10324524]
[1763094798729,2.0,98389.0,98357.0,0.20334065]
[1763094798963,0.02785875,98388.0,98379.0,0.03852]
[1763094799176,0.01857218,98387.0,98380.0,0.09687]
[1763094799384,0.01857218,98386.0,98380.0,0.30016256]
[1763094799591,2.0,98401.0,98382.0,0.20328845]
[1763094799788,0.01859077,98400.0,98381.0,0.09687]
[1763094799996,0.20326355,98395.0,98381.0,0.09687]
[1763094800202,0.01859077,98394.0,98388.0,0.2032754]
[1763094800402,0.0101595,98430.0,98405.0,0.10808]
[1763094800602,2.0,98423.0,98405.0,0.10808]
[1763094800859,0.00930146,98422.0,98414.0,0.06148]
[1763094801061,0.02663859,98440.0,98423.0,0.10808]
[1763094801272,0.00930257,98439.0,98423.0,0.0466]
[1763094801438,0.00930257,98439.0,98424.0,0.1975126]
[1763094801439,0.20317736,98437.0,98424.0,0.1975126]
[1763094801642,0.20319816,98427.0,98424.0,0.09687]
[1763094801861,0.20319546,98428.0,98423.0,0.0466]
[1763094802069,0.20320247,98424.0,98423.0,0.0466]
[1763094802253,0.23394074,98424.0,98423.0,0.0466]
[1763094802789,0.00930209,98424.0,98423.0,0.0466]
[1763094802957,0.02681056,98444.0,98423.0,0.0466]
[1763094803165,0.20318504,98433.0,98423.0,0.0466]
[1763094803380,0.20318504,98433.0,98432.0,0.06148]
[1763094803582,0.21248914,98433.0,98432.0,0.06148]
[1763094804168,0.0093041,98433.0,98423.0,0.0466]
[1763094804367,0.20317583,98437.0,98432.0,0.06148]
[1763094804737,0.20362466,98440.0,98439.0,0.06148]
[1763094804738,0.00045412,98440.0,98439.0,0.06148]
[1763094805151,0.20315499,98447.0,98444.0,1.79638112]
[1763094805326,0.20315912,98445.0,98444.0,1.79648245]
[1763094805872,0.20314055,98454.0,98444.0,1.79648245]
[1763094806043,2.0,98459.0,98453.0,0.06148]
[1763094806219,0.20313848,98455.0,98453.0,0.06148]
[1763094806459,0.0101564,98460.0,98444.0,1.79648245]
[1763094806460,2.0,98459.0,98444.0,1.79648245]
[1763094806672,0.20315838,98446.0,98444.0,1.79648245]
[1763094807023,0.0101564,98460.0,98444.0,1.79648245]
[1763094807024,2.0,98474.0,98453.0,0.06148]
[1763094807230,0.20310913,98470.0,98459.0,0.06148]
[1763094807434,0.20310754,98470.0,98459.0,0.06148]
[1763094807636,2.0,98479.0,98469.0,0.10808]
[1763094807836,2.0,98489.0,98470.0,0.06148]
[1763094808054,0.19617298,98479.0,98478.0,0.06148]
[1763094808778,2.0,98489.0,98487.0,0.06148]
[1763094808978,0.01015331,98490.0,98470.0,0.1006426]
[1763094809321,0.20310548,98471.0,98470.0,0.00010133]
[1763094809962,2.52659548,98471.0,98470.0,0.00010133]
[1763094810171,2.60060658,98471.0,98470.0,0.00010133]
[1763094810381,2.60230676,98471.0,98470.0,0.00010133]
[1763094810750,2.55888802,98471.0,98470.0,0.00010133]
[1763094811168,2.55839802,98471.0,98470.0,0.00010133]
[1763094811380,2.55888802,98471.0,98470.0,0.00010133]
[1763094811573,2.55888654,98471.0,98470.0,0.00010133]
[1763094811772,0.76350202,98471.0,98470.0,0.00010133]
[1763094811954,0.21606234,98471.0,98470.0,0.00010133]
[1763094812171,2.21406234,98471.0,98470.0,0.00010133]
[1763094812373,2.21455234,98471.0,98470.0,0.00010133]
[1763094812569,2.29981524,98471.0,98470.0,0.00010133]
[1763094813603,2.29781524,98471.0,98470.0,0.00010133]
[1763094813767,2.62081524,98471.0,98470.0,0.00010133]
[1763094813969,2.1989219,98471.0,98470.0,0.00010133]
[1763094814306,2.40202738,98471.0,98470.0,0.00010133]
[1763094814714,2.40002738,98471.0,98470.0,0.00010133]
[1763094814909,2.40202738,98471.0,98470.0,0.00010133]
[1763094815680,0.40202748,98471.0,98470.0,0.00010133]
[1763094815912,0.45103748,98471.0,98470.0,0.00010133]
[1763094816343,0.45103748,98471.0,98444.0,1.26833357]
[1763094816344,0.30083912,98445.0,98444.0,1.26833357]
[1763094816546,0.49789732,98445.0,98444.0,0.92766891]
[1763094816748,0.49789732,98445.0,98444.0,0.8745233]
[1763094817154,0.40010382,98434.0,98368.0,0.09681]
[1763094817358,0.44960382,98434.0,98385.0,0.04995]
[1763094817765,0.20325086,98401.0,98389.0,0.09681]
[1763094818012,0.196922,98400.0,98389.0,0.09681]
[1763094818223,0.20325531,98399.0,98389.0,0.09681]
[1763094818394,0.20325996,98397.0,98389.0,0.09681]
[1763094818597,0.20326403,98395.0,98389.0,0.09681]
[1763094818796,0.196922,98402.0,98389.0,0.09681]
[1763094819058,0.01016156,98410.0,98389.0,0.09681]
[1763094819059,0.00013608,98395.0,98389.0,0.3000834]
[1763094819263,0.00013608,98395.0,98392.0,0.20326801]
[1763094819614,0.00013608,98395.0,98393.0,0.09681]
[1763094820180,0.01016156,98410.0,98385.0,0.04995]
[1763094820380,0.01016156,98410.0,98394.0,0.06242]
[1763094820591,0.20323757,98407.0,98394.0,0.06242]
[1763094820791,0.01016156,98410.0,98385.0,0.05040412]
[1763094820792,0.20326953,98392.0,98385.0,0.05040412]
[1763094820995,0.2032355,98408.0,98385.0,0.05040412]
[1763094821229,0.20327864,98388.0,98385.0,0.05040412]
[1763094821436,0.20326838,98393.0,98385.0,0.05040412]
[1763094821619,0.20327818,98388.0,98385.0,0.05040412]
[1763094822244,0.20326267,98395.0,98385.0,0.05040412]
[1763094822432,0.20325063,98401.0,98385.0,0.14721412]
[1763094822943,0.20322378,98414.0,98386.0,0.09681]
[1763094823158,0.323,98414.0,98385.0,0.05040412]
[1763094823354,0.20328025,98387.0,98385.0,0.00045412]
[1763094823589,0.20327483,98389.0,98385.0,0.00045412]
[1763094823790,0.01016156,98410.0,98385.0,0.09726412]
[1763094824003,0.20328095,98386.0,98385.0,0.00045412]
[1763094824377,0.20326127,98396.0,98385.0,0.00045412]
[1763094824586,0.323,98398.0,98385.0,0.09726412]
[1763094824834,0.196922,98405.0,98385.0,0.09726412]
[1763094824968,0.196922,98403.0,98385.0,0.09726412]
[1763094825167,0.196922,98409.0,98385.0,0.09726412]
[1763094825373,0.196922,98409.0,98402.0,0.04995]
[1763094825628,0.20323826,98407.0,98402.0,0.04995]
[1763094825829,0.196922,98406.0,98402.0,0.04995]
[1763094826046,0.00930447,98405.0,98402.0,0.04995]
[1763094826243,0.323,98418.0,98402.0,0.04995]
[1763094826244,0.00930447,98404.0,98403.0,0.09681]
[1763094826677,0.196922,98429.0,98412.0,0.06242]
[1763094826868,0.196922,98427.0,98403.0,0.09681]
[1763094827075,0.0101595,98430.0,98406.0,0.20323774]
[1763094827076,0.196922,98420.0,98406.0,0.20323774]
[1763094827211,0.196922,98418.0,98403.0,0.09681]
[1763094827414,0.00931288,98417.0,98403.0,0.09681]
[1763094827605,0.00931288,98416.0,98403.0,0.09681]
[1763094827812,0.02795121,98415.0,98403.0,0.09681]
[1763094828180,0.20323029,98411.0,98403.0,0.09681]
[1763094828470,0.02795121,98410.0,98403.0,0.09681]
[1763094828702,0.02795121,98409.0,98402.0,0.04995]
[1763094828828,0.20324293,98405.0,98402.0,0.04995]
[1763094829022,0.20324583,98403.0,98402.0,0.04995]
[1763094829236,0.23119704,98403.0,98402.0,0.04995]
[1763094829439,0.02795121,98403.0,98402.0,0.04995]
[1763094829710,0.02795121,98403.0,98402.0,0.14676]
[1763094830121,0.20326821,98393.0,98391.0,0.04995]
[1763094830330,0.02796044,98392.0,98384.0,0.04995]
[1763094830543,0.20328095,98386.0,98384.0,0.04995]
[1763094830745,0.22191928,98386.0,98384.0,0.04995]
[1763094831574,0.23123949,98386.0,98384.0,0.04995]
[1763094832000,0.04943039,98386.0,98384.0,0.04995]
[1763094832234,0.02795854,98386.0,98384.0,0.04995]
[1763094832373,0.23123949,98386.0,98384.0,0.04995]
[1763094832602,0.2527065,98386.0,98384.0,0.04995]
[1763094832777,0.04942555,98386.0,98379.0,0.09681]
[1763094832962,0.02795854,98386.0,98330.0,0.00999999]
[1763094833171,0.20335122,98352.0,98347.0,0.09681]
[1763094833405,0.01863833,98352.0,98351.0,0.00013608]
[1763094836017,0.22198955,98352.0,98351.0,0.00013608]
[1763094836459,0.01863833,98352.0,98351.0,0.00013608]
[1763094836676,0.21556033,98352.0,98351.0,0.00013608]
[1763094836890,0.22485712,98352.0,98351.0,0.00013608]
[1763094837347,0.54785712,98352.0,98351.0,0.00013608]
[1763094837566,0.56927115,98352.0,98351.0,0.00013608]
[1763094839811,0.57027115,98352.0,98351.0,0.00013608]
[1763094840328,0.57027115,98352.0,98304.0,0.20344956]
[1763094840329,0.01016776,98350.0,98310.0,0.56135748]
[1763094840589,0.03695631,98340.0,98320.0,0.56135748]
[1763094840856,0.02793512,98339.0,98330.0,0.56135748]
[1763094841184,0.01863833,98338.0,98331.0,0.09794]
[1763094841384,0.01863833,98337.0,98325.0,0.04674]
[1763094841631,0.02793844,98336.0,98325.0,0.04674]
[1763094841883,0.01863833,98335.0,98325.0,0.14468]
[1763094842095,0.20340034,98329.0,98325.0,0.14468]
[1763094842307,0.01863833,98328.0,98325.0,0.04674]
[1763094842493,0.01863833,98327.0,98325.0,0.04674]
[1763094842725,0.196922,98349.0,98326.0,0.09794]
[1763094842929,0.04934261,98348.0,98336.0,0.06174]
[1763094843134,0.196922,98346.0,98336.0,0.06174]
[1763094843372,0.02790711,98345.0,98337.0,0.09794]
[1763094843605,0.01860474,98344.0,98342.0,0.20337172]
[1763094843904,0.0001376,98350.0,98337.0,0.09794]